Cogmind - Beta 13 X1 @@@ ROGUE MODE // 2023.07.11 @ 14:42:47 // AFD2020/Player2 Player: Minty Result: Core destroyed Performance ------------- Evolutions (5) 2500 Regions Visited (17) 3400 Robots Destroyed (192) 960 Value Destroyed (7648) 7648 Prototype IDs (26) 520 Alien Tech Used (0) 0 Bonus (1394) 1394 TOTAL SCORE: 16422 Bonus ------- High Alert Combat Kills 1677 Follower Combat Kills 3451 Entered Garrisons 400 Used RIF Installer 1000 Met Data Miner 300 Friendly Fire -5434 Cogmind --------- Core Integrity 0/1000 Matter 127/300 Energy 283/310 System Corruption 2% Temperature Cool (0) Movement Treading (240) Ox1 Location -5/Garrison Parts ------- > --- POWER (1) -------- Reinforced Fission Core > --- PROPULSION (3) --- Improved Medium Treads > --- UTILITY (9) ------ Improved Targeting Computer Improved Hacking Suite System Shield System Shield System Shield Relay Coupler [Swarmer] (47) > --- WEAPON (4) ------- Advanced Plasma Cannon Matter Neutralizer Matter Neutralizer KE Penetrator > --- INVENTORY (5) ---- Relay Coupler [NC] (27) Relay Coupler [Grunt] (29) Relay Coupler [Sentry] (19) Relay Coupler [Behemoth] (12) Heavy Plasma Cannon Peak State ------------ > --- POWER ------------ Heavy Deuterium Engine > --- PROPULSION ------- Carbon-fiber Leg Flexi-carbon Leg Flexi-carbon Leg > --- UTILITY ---------- Improved Cooling System Medium Storage Unit Improved Transmission Jammer Hacking Suite Improved Hacking Suite System Shield System Shield System Shield Mini Drone Bay > --- WEAPON ----------- Thermic Laser KE Penetrator Antimatter Cannon Antimatter Cannon > --- INVENTORY -------- Advanced Heat Sink Heavy Reactive Plating System Restoration Module High-powered Shock Rifle Force Rifle Cooled Particle Cannon KE Penetrator Long-range Missile Launcher [Rating: 79] Favorites ----------- Power Heavy Deuterium Engine Engine Heavy Deuterium Engine Power Core Micro Nuclear Core Propulsion Improved Titanium Leg Treads Improved Medium Treads Leg Improved Titanium Leg Wheel Wheel Utility System Shield Device Improved Cooling System Storage Medium Storage Unit Processor Improved Targeting Computer Hackware System Shield Protection Improved Light Armor Plating Weapon Thermic Laser Energy Gun Thermic Laser Energy Cannon Matter Neutralizer Ballistic Gun Improved Assault Rifle Ballistic Cannon Antimatter Cannon Launcher Rocket Launcher Impact Weapon Powered Hammer Slashing Weapon Carbide Saw Build | -11 -10 -10 -9 -9 -9 -8 -8 -7 -7 -7 -7 -6 -6 -5 -5 -5 -5 ------- Run | Jun Mat Min Mat Min Exi Min Mat Fac Low Low Dat Pro Fac Fac Gar Fac Gar Slots Evolved 10 | . . . 2 . . . 2 2 . . . . 2 2 . . . Power . | . . . . . . . . . . . . . . . . . . Propulsion 1 | . . . 1 . . . . . . . . . . . . . . Utility 7 | . . . . . . . 1 2 . . . . 2 2 . . . Weapon 2 | . . . 1 . . . 1 . . . . . . . . . . Parts Attached 206 | . 9 2 25 10 . . 9 21 5 12 . 8 31 21 22 2 29 Power 28 | . 2 . 1 1 . . . 2 3 4 . 1 6 4 2 . 2 Engine 18 | . 2 . 1 1 . . . 1 1 3 . 1 5 3 . . . Core 10 | . . . . . . . . 1 2 1 . . 1 1 2 . 2 Reactor . | . . . . . . . . . . . . . . . . . . Propulsion 39 | . 2 . 7 4 . . 2 6 . 1 . . 5 4 4 . 4 Treads 1 | . . . . . . . . . . . . . . . . . 1 Leg 28 | . . . . 3 . . 2 6 . 1 . . 5 4 4 . 3 Wheel 10 | . 2 . 7 1 . . . . . . . . . . . . . Hover . | . . . . . . . . . . . . . . . . . . Flight . | . . . . . . . . . . . . . . . . . . Utility 43 | . 3 . 4 2 . . 1 4 . 5 . 2 5 8 4 2 3 Device 14 | . 2 . . . . . . . . 2 . 2 1 3 3 . 1 Storage 2 | . 1 . . . . . . . . . . . . 1 . . . Processor 6 | . . . 1 . . . 1 1 . 1 . . . . . 2 . Hackware 8 | . . . . . . . . . . . . . 4 2 . . 2 Protection 13 | . . . 3 2 . . . 3 . 2 . . . 2 1 . . Artifact . | . . . . . . . . . . . . . . . . . . Weapon 96 | . 2 2 13 3 . . 6 9 2 2 . 5 15 5 12 . 20 Energy Gun 25 | . . 1 2 . . . 2 2 . . . 3 8 . 3 . 4 Energy Cannon 11 | . . . . . . . . 1 . . . . . 1 1 . 8 Ballistic Gun 31 | . 2 1 10 1 . . 2 3 . . . 1 5 3 . . 3 Ballistic Cannon 12 | . . . . 1 . . 1 . . 2 . . 2 1 1 . 4 Launcher 13 | . . . 1 1 . . 1 3 1 . . 1 . . 4 . 1 Special Weapon . | . . . . . . . . . . . . . . . . . . Impact Weapon 1 | . . . . . . . . . 1 . . . . . . . . Slashing Weapon 3 | . . . . . . . . . . . . . . . 3 . . Piercing Weapon . | . . . . . . . . . . . . . . . . . . Special Melee Weapon . | . . . . . . . . . . . . . . . . . . Unidentified Prototypes 9 | . . . . . . . 1 2 . . . . 4 1 1 . . Corrupted Parts 1 | . . . . . . . . . . . . . . . . . 1 System Corruption 2 | . . . . . . . . . . . . . . . . . 2 Parts Lost 39 | . . 1 . 5 . . . 1 . 2 . . 6 4 6 . 14 Power 8 | . . . . 1 . . . 1 . 1 . . 1 1 2 . 1 Propulsion 11 | . . . . 3 . . . . . . . . 2 1 1 . 4 Utility 13 | . . . . 1 . . . . . 1 . . 1 1 3 . 6 Weapon 7 | . . 1 . . . . . . . . . . 2 1 . . 3 Highest Loss Streak 6 | . . 1 . 5 . . . 1 . 1 . . 3 1 5 . 6 To Critical Strikes 1 | . . . . . . . . . . . . . . 1 . . . Average Slot Usage (%) 97 | . 94 100 99 98 100 100 100 99 100 99 100 100 99 98 94 96 90 Engine 5 | . 14 14 11 10 11 11 9 5 2 3 7 7 3 4 1 . . Core 1 | . . . . . . . . 1 5 3 . . 2 . 3 5 4 Leg 17 | . 7 . . 20 33 33 27 22 23 23 23 23 19 17 16 17 8 Wheel 4 | . 20 28 33 11 . . . . . . . . . . . . . Device 4 | . 8 14 2 . . . . . . 1 7 7 6 7 8 8 3 Storage 7 | . 14 14 11 11 11 11 9 7 7 7 7 7 6 5 5 5 1 Processor 9 | . . . . . . . 9 15 15 20 15 15 13 8 . 4 10 Hackware 10 | . . . . . . . . . . . . . 19 26 29 29 33 Protection 5 | . . . 8 10 11 11 9 15 15 7 7 7 . 1 2 . . Energy Gun 8 | . . 11 8 6 . . 3 1 7 5 . 14 17 7 9 11 4 Ballistic Gun 11 | . 28 16 23 16 22 22 16 21 15 15 15 6 4 2 5 5 4 Ballistic Cannon 4 | . . . . 4 11 11 14 1 . 7 15 8 3 11 3 . 2 Launcher 1 | . . . 1 5 . . 1 5 5 1 . . . . 2 5 . Naked Turns . | . . . . . . . . . . . . . . . . . . Heaviest Build 82 | 11 20 20 27 32 28 28 34 45 42 51 47 49 49 82 74 40 57 Greatest Support 60 | 20 20 20 30 33 33 33 43 60 60 60 60 60 60 56 55 50 50 Greatest Overweight (x) 16 | . 1 . . 2 . . 1 1 . . . . 1 1 1 . 16 Average Overweight (x) . | . . . . . . . . . . . . . . . . . 1 Largest Inventory Capacity 10 | 8 10 10 10 10 10 10 10 10 10 10 10 10 10 10 10 10 10 Average Capacity 9 | 8 9 10 10 10 10 10 10 10 10 10 10 10 10 10 10 10 6 Most Carried 10 | 5 10 10 10 10 10 10 10 10 10 10 10 10 10 10 10 10 10 Average Carried 8 | 5 5 9 9 9 10 10 9 9 9 9 10 9 9 8 9 9 6 Final Capacity 10 | 8 10 10 10 10 10 10 10 10 10 10 10 10 10 10 10 10 5 Final Carried 10 | 5 10 9 9 10 10 10 9 9 10 10 10 10 10 10 9 10 5 Class Distribution -------------------- 38% | Hacker-Gunner 20% | Tank 9% | Derelict-Gunner 8% | Mutant 8% | Gunner 5% | Scavenger-Tank 4% | Scavenger-Mutant Dominant Class ---------------- Mutant | -10/Materials Scavenger-Mutant | -10/Mines Scavenger-Tank | -9/Materials Tank | -9/Mines Tank | -9/Exiles Tank | -8/Mines Tank | -8/Materials Tank | -7/Factory Tank | -7/Lower Caves Gunner | -7/Lower Caves Gunner | -7/Data Miner Derelict-Gunner | -6/Proximity Caves Hacker-Gunner | -6/Factory Hacker-Gunner | -5/Factory Hacker-Gunner | -5/Garrison Hacker-Gunner | -5/Factory Hacker-Gunner | -5/Garrison Resources | -11 -10 -10 -9 -9 -9 -8 -8 -7 -7 -7 -7 -6 -6 -5 -5 -5 -5 ----------- Run | Jun Mat Min Mat Min Exi Min Mat Fac Low Low Dat Pro Fac Fac Gar Fac Gar Matter Collected 5522 | 200 334 51 426 314 . . 184 841 146 319 . 289 725 588 597 15 493 Remotely . | . . . . . . . . . . . . . . . . . . Salvage Created 7300 | . 373 43 696 213 . . 203 687 262 352 . 391 2028 800 294 31 927 Parts 355 | . 32 6 37 18 . . 12 48 8 12 . 11 76 44 19 1 31 Haulers Intercepted 6 | . 1 . 1 . . . . 1 . . . . 2 1 . . . Recyclers Shooed 7 | . 2 . 1 . . . . . . . . . 3 1 . . . Parts Field Recycled . | . . . . . . . . . . . . . . . . . . Retrieved Matter . | . . . . . . . . . . . . . . . . . . Parts Self-Destructed 38 | . . . . . . . . . 9 15 . 14 . . . . . Prevented 12 | . . . . . . . . . 3 5 . 4 . . . . . Kills | -11 -10 -10 -9 -9 -9 -8 -8 -7 -7 -7 -7 -6 -6 -5 -5 -5 -5 ------- Run | Jun Mat Min Mat Min Exi Min Mat Fac Low Low Dat Pro Fac Fac Gar Fac Gar Combat Hostiles Destroyed 132 | . 5 2 11 9 . . 3 11 5 6 . 11 28 11 11 . 19 Guns 64 | . 5 2 10 5 . . 1 5 2 4 . 4 11 4 3 . 8 Cannons 31 | . . . . 1 . . 1 2 1 . . 3 7 3 6 . 7 AOE 32 | . . . 1 3 . . 1 4 1 2 . 3 8 4 2 . 3 Classes Destroyed 18 | . 7 . 2 1 . . 3 2 . . . 1 1 . 1 . . Worker 16 | . 3 1 2 1 . . 1 3 . . . . 3 2 . . . Builder 13 | . 2 . . . . . 1 2 . . . . 4 4 . . . Tunneler 5 | . 1 . . 2 . . . . . . . . 2 . . . . Hauler 6 | . 1 . 1 . . . . 1 . . . . 2 1 . . . Recycler 5 | . 1 . 1 . . . . . . . . . 2 1 . . . Mechanic 1 | . . . . . . . . . . . . . 1 . . . . Operator 4 | . . . . . . . 2 1 . . . . 1 . . . . Watcher 5 | . . . . . . . 1 . . . . . . 3 . 1 . Swarmer 34 | . 3 2 . 7 . . . . . . . 6 4 6 3 . 3 Cutter 3 | . . . . . . . . . . . . . . . 3 . . Grunt 57 | . 2 . 7 1 . . 1 5 3 3 . 3 18 . 1 . 13 Brawler 3 | . . . 1 . . . . . . 1 . . . . . . 1 Duelist 6 | . . . . 1 . . . . 2 1 . . . . 2 . . Protector 1 | . . . . . . . . 1 . . . . . . . . . Sentry 15 | . . . 3 . . . . 2 . 1 . 1 3 3 1 . 1 Hunter 8 | . . . . . . . 2 2 . . . . 2 1 1 . . Programmer 5 | . . . . . . . . 1 . . . . 1 3 . . . Behemoth 2 | . . . . . . . . . . . . 1 . . . . 1 Thug 3 | . . . . . . . . 2 1 . . . . . . . . Best Kill Streak 10 | . 4 2 4 3 . . 5 5 3 6 . 3 7 5 8 1 10 Combat Bots Only 10 | . 2 2 3 3 . . 3 3 3 6 . 3 4 5 8 . 10 Max Kills in Single Turn 4 | . 1 1 2 3 . . 1 3 1 1 . 2 4 4 2 1 2 Gunslinging 1 | . . . . . . . . . . . . . 1 . . . . Exploded 4 | . . . 1 3 . . 1 1 1 1 . 2 3 4 2 . 1 Melee . | . . . . . . . . . . . . . . . . . . Uniques/NPCs Destroyed . | . . . . . . . . . . . . . . . . . . Combat | -11 -10 -10 -9 -9 -9 -8 -8 -7 -7 -7 -7 -6 -6 -5 -5 -5 -5 -------- Run | Jun Mat Min Mat Min Exi Min Mat Fac Low Low Dat Pro Fac Fac Gar Fac Gar Damage Taken 8746 | . 256 83 610 364 . . 269 828 252 405 . 380 1492 704 1457 . 1646 Core 1350 | . 17 14 100 27 . . 43 106 70 7 . 12 140 98 352 . 364 Absorbed by Shields 1578 | . . . . . . . . . 140 186 . 340 770 142 . . . Redirected to Shielding 103 | . . . . . . . . 12 45 46 . . . . . . . Core Remaining (%) 72 | 100 . 64 . . . 52 83 . . . . 54 82 . . . . Volleys Fired 378 | . 44 8 41 28 . . 14 30 10 17 . 18 73 28 28 2 37 Largest 4 | . 2 2 3 3 . . 4 4 4 4 . 4 4 4 4 4 4 Hottest 341 | . 40 60 88 78 . . 136 180 221 179 . 252 290 245 218 205 341 Shots Fired 1177 | . 88 16 94 63 . . 56 106 41 58 1 66 274 106 97 7 104 Gun 883 | . 88 16 94 54 . . 32 83 31 47 . 40 235 52 52 6 53 Cannon 251 | . . . . 8 . . 19 10 5 8 1 24 39 54 41 . 42 Launcher 43 | . . . . 1 . . 5 13 5 3 . 2 . . 4 1 9 Special . | . . . . . . . . . . . . . . . . . . Kinetic 712 | . 88 10 70 43 . . 42 89 21 41 1 35 90 77 63 2 40 Thermal 317 | . . 6 2 . . . . 4 15 14 . 29 143 29 26 2 47 Explosive 31 | . . . . 1 . . 5 11 . . . . . . 4 1 9 Electromagnetic 117 | . . . 22 19 . . 9 2 5 3 . 2 41 . 4 2 8 Robot Hit Streak 18 | . 6 4 12 7 . . 5 18 7 13 1 13 15 8 12 3 18 Robot Miss Streak 9 | . 6 2 6 2 . . 5 8 4 5 5 3 2 5 9 1 3 Penetration Max 1 | . . . . . . . . 1 1 1 . . . 1 . . 1 Secondary Targets 8 | . 1 1 1 2 . . . . . 1 . . 2 . . . . Max Gunslinging Chain 1 | . 1 1 1 1 . . . . . 1 . . 1 . . . . Shots Hit Robots 721 | . 45 9 62 37 . . 22 77 30 44 1 41 190 49 49 3 62 Core Hits 373 | . 16 3 24 14 . . 15 78 13 18 . 27 80 29 22 2 32 Critical Kills 2 | . 1 . . . . . . . . . . . . . . . 1 Critical Parts Destroyed 5 | . . . . . . . . 1 1 . . . 1 2 . . . Critical Strikes 37 | . 1 . 1 1 . . 1 1 1 1 . 3 15 3 4 1 4 Burn 21 | . . . . . . . . . . . . 3 13 1 2 1 1 Destroy 8 | . 1 . . . . . . 1 1 . . . 1 2 . . 2 Blast 4 | . . . . . . . 1 . . 1 . . . . 2 . . Corrupt 4 | . . . 1 1 . . . . . . . . 1 . . . 1 Melee Attacks 6 | . . . . . . . . . . . . . . . 6 . . Impact . | . . . . . . . . . . . . . . . . . . Slashing 6 | . . . . . . . . . . . . . . . 6 . . Piercing . | . . . . . . . . . . . . . . . . . . Sneak Attacks . | . . . . . . . . . . . . . . . . . . Combat Hostiles . | . . . . . . . . . . . . . . . . . . Follow-up Attacks . | . . . . . . . . . . . . . . . . . . Damage Inflicted 22312 | . 671 106 1095 685 . 16 527 2724 743 1303 7 985 5805 3050 1652 77 2866 Guns 10802 | . 624 99 893 495 . . 244 965 518 787 . 477 3592 765 543 77 723 Cannons 4771 | . . . . 50 . . 119 167 137 195 7 388 904 780 806 . 1218 Explosions 6598 | . . . 174 133 . . 164 1592 88 321 . 120 1273 1505 303 . 925 Melee . | . . . . . . . . . . . . . . . . . . Ramming 141 | . 47 7 28 7 . 16 . . . . . . 36 . . . . Kinetic 9284 | . 624 56 633 396 . . 253 1115 327 701 7 502 1660 1049 1047 19 895 Thermal 8533 | . . 43 194 . . . 20 926 328 315 . 363 3122 2001 276 20 925 Explosive 2290 | . . . . 133 . . 144 504 . . . . 281 . 303 . 925 Electromagnetic 2064 | . . . 240 149 . . 110 179 88 287 . 120 706 . 26 38 121 Impact . | . . . . . . . . . . . . . . . . . . Slashing . | . . . . . . . . . . . . . . . . . . Piercing . | . . . . . . . . . . . . . . . . . . Highest Corruption 3 | . . . . . . . . 1 1 1 1 1 3 3 . . 2 Average Corruption 1 | . . . . . . . . 1 1 1 1 1 3 2 . . 2 Corruption Purged 4 | . . . . . . . . . . . . 1 . 3 . . . Corruption Blocked . | . . . . . . . . . . . . . . . . . . Effects 40 | . . . . . . . . 1 2 5 1 6 14 2 . . 9 Message Errors 9 | . . . . . . . . . 1 1 . 2 4 . . . 1 Matter Fused 11 | . . . . . . . . . . 2 . 2 2 . . . 5 Heat Flow Errors 4 | . . . . . . . . . . 1 . . 3 . . . . Energy Discharges 5 | . . . . . . . . . . 1 . . 2 1 . . 1 Data Loss (minor) 6 | . . . . . . . . 1 . . . 1 2 1 . . 1 Data Loss (major) 1 | . . . . . . . . . . . . . . . . . 1 Misfires 3 | . . . . . . . . . 1 . 1 1 . . . . . Weapon Failures 1 | . . . . . . . . . . . . . 1 . . . . Overload Shots 1 | . . . . . . . . . 1 . . . . . . . . Overflow Damage 671 | . . . 8 . . . . 49 . . . . 102 415 40 . 57 Projectiles 160 | . . . . . . . . . . . . . 21 52 39 . 48 Explosions 503 | . . . . . . . . 49 . . . . 81 363 1 . 9 Melee 8 | . . . 8 . . . . . . . . . . . . . . Knockbacks 31 | . . . . 1 . . . . . 2 1 2 6 4 9 . 6 Impact . | . . . . . . . . . . . . . . . . . . Kinetic 27 | . . . . 1 . . . . . 2 1 2 6 4 7 . 4 Secondary 4 | . . . . . . . . . . . . . . . 2 . 2 Self-Inflicted Damage 1095 | . 11 3 108 3 . . 7 266 33 . . . 249 317 71 . 27 Shots 21 | . . . 3 . . . 1 6 2 . . . 3 4 1 . 1 Rammed 4 | . 1 1 1 1 . . . . . . . . . . . . . Targets Rammed 11 | . 3 1 1 1 . 2 . . . . . . 3 . . . . Kicked 7 | . 2 . . . . 2 . . . . . . 3 . . . . Crushed . | . . . . . . . . . . . . . . . . . . Highest Temperature 541 | . 6 . 150 84 . . 175 222 350 372 . 248 312 339 180 48 541 Average Temperature 90 | . 5 . 44 27 . . 72 62 156 141 . 92 90 79 31 18 177 Received Heat Transfer 1534 | . 48 . 237 . . . 27 78 63 30 . 62 474 18 108 . 389 Effects 12 | . . . . . . . . . 3 4 . 1 1 . . . 3 Shutdowns 3 | . . . . . . . . . . . . . . . . . 3 Energy Bleed 2 | . . . . . . . . . . 1 . 1 . . . . . Interference 7 | . . . . . . . . . 3 3 . . 1 . . . . Siege Activations . | . . . . . . . . . . . . . . . . . . Robots Corrupted 2 | . . . . . . . . . . . . . 1 . . . 1 Combat Hostiles 1 | . . . . . . . . . . . . . . . . . 1 Parts Fried 4 | . . . . . . . . 1 . . . . 2 . . 1 . Impact Corruptions 2 | . . . 1 . . . . . . . . . . . . . 1 Robots Melted 4 | . . . . . . . . . 1 . . 1 2 . . . . Combat Hostiles 4 | . . . . . . . . . 1 . . 1 2 . . . . Parts Melted 19 | . . . 1 . . . . 2 . . . 1 11 3 1 . . Heat Transferred 13422 | . . 100 162 . . . 50 674 546 628 . 1121 6612 1677 597 111 1144 Parts Sabotaged . | . . . . . . . . . . . . . . . . . . Parts Stolen . | . . . . . . . . . . . . . . . . . . Parts Stripped . | . . . . . . . . . . . . . . . . . . Power Chain Reactions 9 | . . . 3 . . . 1 2 . 1 . . 2 . . . . Missiles Intercepted . | . . . . . . . . . . . . . . . . . . Alert | -11 -10 -10 -9 -9 -9 -8 -8 -7 -7 -7 -7 -6 -6 -5 -5 -5 -5 ------- Run | Jun Mat Min Mat Min Exi Min Mat Fac Low Low Dat Pro Fac Fac Gar Fac Gar Peak Influence 1673 | . 400 198 479 373 . . 402 1187 . . . . 1252 1033 1616 907 1673 Initial 848 | . . 140 . 176 . . . 182 . . . . 71 613 618 848 634 Average 663 | . 215 162 295 249 . . 307 869 . . . . 509 671 1267 874 1331 Maximum Alert Level 5 | . 2 . 2 1 . . 2 4 . . . . 4 3 5 3 5 Low Security (%) 16 | 100 37 100 17 46 . 100 13 2 . . . . 13 1 . . . Level 1 24 | . 62 . 58 53 . . 66 8 . . . . 33 11 . . . Level 2 17 | . . . 23 . . . 19 6 . . . . 28 50 11 . 2 Level 3 23 | . . . . . . . . 75 . . . . 12 37 12 100 32 Level 4 15 | . . . . . . . . 6 . . . . 11 . 65 . 56 Level 5 1 | . . . . . . . . . . . . . . . 10 . 8 High Security . | . . . . . . . . . . . . . . . . . . Max Security . | . . . . . . . . . . . . . . . . . . Squads Dispatched 46 | . 3 . 4 . . . 1 12 . 1 . . 19 6 . . . Investigation 22 | . 2 . 3 . . . . 5 . . . . 8 4 . . . Extermination 6 | . . . . . . . . 2 . . . . 2 2 . . . Reinforcement 9 | . 1 . 1 . . . 1 2 . . . . 4 . . . . Assault 4 | . . . . . . . . 2 . 1 . . 1 . . . . Garrison 5 | . . . . . . . . 1 . . . . 4 . . . . Intercept . | . . . . . . . . . . . . . . . . . . Searches Triggered . | . . . . . . . . . . . . . . . . . . Data Miner Redirects 9 | . . . . . . . . . . . . . 5 4 . . . Construction Impeded 3 | . . . . . . . . 2 . . . . 1 . . . . Haulers Reinforced 1 | . . . . . . . . . . . . . 1 . . . . Active Scanning Responses . | . . . . . . . . . . . . . . . . . . Cargo Convoy Interrupts . | . . . . . . . . . . . . . . . . . . Stealth | -11 -10 -10 -9 -9 -9 -8 -8 -7 -7 -7 -7 -6 -6 -5 -5 -5 -5 --------- Run | Jun Mat Min Mat Min Exi Min Mat Fac Low Low Dat Pro Fac Fac Gar Fac Gar Distress Signals 6 | . . . 1 . . . 2 1 . . . . 2 . . . . Communications Jammed . | . . . . . . . . . . . . . . . . . . Distress Signals . | . . . . . . . . . . . . . . . . . . Times Spotted 266 | . 20 3 24 13 . . 12 33 8 14 . 16 44 20 28 2 29 Peak Tracking Total 11 | . 4 3 4 4 . . 7 5 4 10 . 4 7 4 8 1 11 Tactical Retreats 5 | . . . 1 1 . . . . 1 1 . . 1 . . . . Traps | -11 -10 -10 -9 -9 -9 -8 -8 -7 -7 -7 -7 -6 -6 -5 -5 -5 -5 ------- Run | Jun Mat Min Mat Min Exi Min Mat Fac Low Low Dat Pro Fac Fac Gar Fac Gar Traps Triggered 13 | . 1 1 . . . . . 3 . . . . 3 1 2 . 2 Indirectly . | . . . . . . . . . . . . . . . . . . Trap Hack Attempts . | . . . . . . . . . . . . . . . . . . Triggered . | . . . . . . . . . . . . . . . . . . Disarmed . | . . . . . . . . . . . . . . . . . . Reprogrammed . | . . . . . . . . . . . . . . . . . . Reused . | . . . . . . . . . . . . . . . . . . Traps Extracted . | . . . . . . . . . . . . . . . . . . Installed . | . . . . . . . . . . . . . . . . . . Triggered 1 | . . . . . . . . . 1 . . . . . . . . Machines | -11 -10 -10 -9 -9 -9 -8 -8 -7 -7 -7 -7 -6 -6 -5 -5 -5 -5 ---------- Run | Jun Mat Min Mat Min Exi Min Mat Fac Low Low Dat Pro Fac Fac Gar Fac Gar Machines Disabled 55 | . . . 1 . . . 3 9 . . . . 13 20 2 . 7 Max in Single Turn 4 | . . . 1 . . . 1 3 . . . . 4 4 1 . 2 Garrison Access 2 | . . . . . . . 1 1 . . . . . . . . . Garrison Relay 4 | . . . . . . . . . . . . . . . 2 . 2 Phase Generator 1 | . . . . . . . . . . . . . . . . . 1 Machines Repaired . | . . . . . . . . . . . . . . . . . . Machines Sabotaged . | . . . . . . . . . . . . . . . . . . Overloaded Fab Kills . | . . . . . . . . . . . . . . . . . . Hacking | -11 -10 -10 -9 -9 -9 -8 -8 -7 -7 -7 -7 -6 -6 -5 -5 -5 -5 --------- Run | Jun Mat Min Mat Min Exi Min Mat Fac Low Low Dat Pro Fac Fac Gar Fac Gar Machines Accessed 52 | . 4 1 4 . 4 . 2 5 1 . 4 . 12 10 2 2 1 Terminals 25 | . 4 . 3 . . . 1 2 . . . . 6 5 2 1 1 Fabricators 4 | . . . . . . . . . . . . . 2 2 . . . Repair Stations 1 | . . . . . . . . 1 . . . . . . . . . Recycling Units 2 | . . . . . . . . 1 . . . . 1 . . . . Scanalyzers 5 | . . . 1 . . . . 1 . . . . 1 2 . . . Garrison Access 5 | . . . . . . . 1 . . . . . 2 1 . 1 . Total Hacks 168 | . 8 1 9 . 4 . 3 14 1 . 30 . 46 37 9 3 3 Successful 92 | . 3 1 4 . 4 . 2 5 1 . 30 . 12 26 2 1 1 Failed 76 | . 5 . 5 . . . 1 9 . . . . 34 11 7 2 2 Catastrophic 25 | . . . 1 . . . . 3 . . . . 16 4 . 1 . Database Lockouts . | . . . . . . . . . . . . . . . . . . Manual 54 | . 6 . 8 . . . . 5 . . . . 21 12 . 2 . Terminals 85 | . 8 . 8 . . . 2 7 . . . . 28 18 9 2 3 Fabricators 14 | . . . . . . . . . . . . . 9 5 . . . Repair Stations 3 | . . . . . . . . 3 . . . . . . . . . Recycling Units 2 | . . . . . . . . 1 . . . . 1 . . . . Scanalyzers 20 | . . . 1 . . . . 3 . . . . 3 13 . . . Garrison Access 8 | . . . . . . . 1 . . . . . 5 1 . 1 . Terminal Hacks 61 | . 3 1 3 . 4 . 1 1 1 . 30 . 5 9 2 . 1 Record 18 | . . . . . 4 . . 1 . . 11 . 2 . . . . Part Schematic 11 | . . . . . . . . . . . 11 . . . . . . Robot Schematic 5 | . . . . . . . . . . . 5 . . . . . . Prototype ID Bank 7 | . . . 2 . . . 1 . . . 3 . . 1 . . . Open Door 2 | . . 1 . . . . . . 1 . . . . . . . . Branch Access Points 2 | . 1 . 1 . . . . . . . . . . . . . . Emergency Access Points 1 | . . . . . . . . . . . . . . . . . 1 Alert Level 4 | . . . . . . . . . . . . . 2 2 . . . Unreport Threat 6 | . . . . . . . . . . . . . 1 5 . . . Dispatch Records 1 | . 1 . . . . . . . . . . . . . . . . Investigation Status 1 | . . . . . . . . . . . . . . 1 . . . Reinforcement Status 1 | . 1 . . . . . . . . . . . . . . . . Garrison Registry 1 | . . . . . . . . . . . . . . . 1 . . Security Stations 1 | . . . . . . . . . . . . . . . 1 . . Fabricator Hacks 4 | . . . . . . . . . . . . . 2 2 . . . Load Schematic 2 | . . . . . . . . . . . . . 1 1 . . . Build 2 | . . . . . . . . . . . . . 1 1 . . . Repair Station Hacks 1 | . . . . . . . . 1 . . . . . . . . . Scan Component 1 | . . . . . . . . 1 . . . . . . . . . Recycling Unit Hacks 2 | . . . . . . . . 1 . . . . 1 . . . . Report Inventory 2 | . . . . . . . . 1 . . . . 1 . . . . Scanalyzer 17 | . . . . . . . . 2 . . . . 2 13 . . . Insert Component 8 | . . . . . . . . 1 . . . . 1 6 . . . Analyze 9 | . . . . . . . . 1 . . . . 1 7 . . . Garrison Access Hacks 3 | . . . . . . . 1 . . . . . . 1 . 1 . Unlock Access 2 | . . . . . . . . . . . . . . 1 . 1 . Seal Access 1 | . . . . . . . 1 . . . . . . . . . . Unauthorized Hacks 4 | . . . 1 . . . . . . . . . 2 1 . . . Terminals 1 | . . . . . . . . . . . . . . 1 . . . Botnet 1 | . . . . . . . . . . . . . . 1 . . . Fabricators . | . . . . . . . . . . . . . . . . . . Repair Stations . | . . . . . . . . . . . . . . . . . . Recycling Units . | . . . . . . . . . . . . . . . . . . Scanalyzers 1 | . . . 1 . . . . . . . . . . . . . . Extract 1 | . . . 1 . . . . . . . . . . . . . . Garrison Access 2 | . . . . . . . . . . . . . 2 . . . . Reprogram 2 | . . . . . . . . . . . . . 2 . . . . Data Cores Recovered 3 | . . . . . . . 1 1 . . . . 1 . . . . Used . | . . . . . . . . . . . . . . . . . . Hacking Detections 29 | . 3 . 2 . . . 1 4 . . . . 8 9 1 1 . Full Trace Events 11 | . . . 1 . . . . 3 . . . . 5 2 . . . Feedback Events . | . . . . . . . . . . . . . . . . . . Feedback Blocked . | . . . . . . . . . . . . . . . . . . Robot Schematics Acquired 5 | . . . . . . . . . . . 5 . . . . . . Robots Built 4 | . . . . . . . . . . . . . 2 2 . . . Authchips . | . . . . . . . . . . . . . . . . . . Time 116 | . . . . . . . . . . . . . 58 58 . . . Total Robot Build Rating 12 | . . . . . . . . . . . . . 6 6 . . . Part Schematics Acquired 24 | . . . 5 . . . . 1 . . 11 . 1 6 . . . Parts Built . | . . . . . . . . . . . . . . . . . . Authchips . | . . . . . . . . . . . . . . . . . . Time . | . . . . . . . . . . . . . . . . . . Total Part Build Rating . | . . . . . . . . . . . . . . . . . . Parts Repaired . | . . . . . . . . . . . . . . . . . . Time . | . . . . . . . . . . . . . . . . . . Parts Recycled . | . . . . . . . . . . . . . . . . . . Recycled Matter . | . . . . . . . . . . . . . . . . . . Retrieved Matter . | . . . . . . . . . . . . . . . . . . Retrieved Components . | . . . . . . . . . . . . . . . . . . Parts Scanalyzed 8 | . . . . . . . . 1 . . . . 1 6 . . . Part Schematics Acquired 8 | . . . . . . . . 1 . . . . 1 6 . . . Parts Damaged 2 | . . . . . . . . . . . . . 1 1 . . . Bothacking | -11 -10 -10 -9 -9 -9 -8 -8 -7 -7 -7 -7 -6 -6 -5 -5 -5 -5 ------------ Run | Jun Mat Min Mat Min Exi Min Mat Fac Low Low Dat Pro Fac Fac Gar Fac Gar Used RIF Installer 2 | . . . . . . . . . . . . . . . 1 . 1 Patrol Navigation 1 | . . . . . . . . . . . . . . . . . 1 Robots Hacked . | . . . . . . . . . . . . . . . . . . Non-combat . | . . . . . . . . . . . . . . . . . . Combat . | . . . . . . . . . . . . . . . . . . Robot Hacks Applied . | . . . . . . . . . . . . . . . . . . Relay Couplers Released 20 | . . . . . . . . 1 . . . . . . 10 . 9 Machine Destruction 20 | . . . . . . . . 1 . . . . . . 10 . 9 Attached 2 | . . . . . . . . . . . . . . . . . 2 Fabnet Peak Effective % . | . . . . . . . . . . . . . . . . . . Robots Rewired 5 | . . . . . . . . . . 2 . . . . 1 . 2 Allies Hacked 1 | . . . . . . . . 1 . . . . . . . . . Hacks Repelled . | . . . . . . . . . . . . . . . . . . Allies | -11 -10 -10 -9 -9 -9 -8 -8 -7 -7 -7 -7 -6 -6 -5 -5 -5 -5 -------- Run | Jun Mat Min Mat Min Exi Min Mat Fac Low Low Dat Pro Fac Fac Gar Fac Gar Total Allies 18 | . 1 . . . . . . 3 . 2 . 1 4 2 3 . 2 Largest Group 4 | . 1 1 1 1 1 1 1 4 2 3 2 3 3 4 3 2 3 Highest-Rated Group 423 | . 57 60 70 73 73 73 78 189 131 155 135 234 245 207 255 196 423 Highest-Rated Ally 148 | . 57 60 70 73 73 73 78 100 101 103 103 106 126 135 135 134 148 Total Orders 2 | . . . . . . . . . . . . . . . 1 . 1 ROAM 1 | . . . . . . . . . . . . . . . . . 1 EXPLORE 1 | . . . . . . . . . . . . . . . 1 . . Ally Attacks 322 | . 23 . 10 5 . . 18 56 19 29 . 20 45 26 40 1 30 Total Damage 14520 | . 204 . 317 193 . . 262 1760 564 1371 . 1036 2702 1837 2170 68 2036 Kills 135 | . 10 . 4 3 . . 7 19 2 8 . 5 24 16 21 1 15 Allies Corrupted . | . . . . . . . . . . . . . . . . . . Allies Melted . | . . . . . . . . . . . . . . . . . . Intel | -11 -10 -10 -9 -9 -9 -8 -8 -7 -7 -7 -7 -6 -6 -5 -5 -5 -5 ------- Run | Jun Mat Min Mat Min Exi Min Mat Fac Low Low Dat Pro Fac Fac Gar Fac Gar Robot Analysis Total . | . . . . . . . . . . . . . . . . . . Derelict Logs Recovered 4 | . . 1 . 2 . . . . . . . 1 . . . . . Drone Launches 3 | . . . . . . . . . . . . . . . 3 . . Drone Recoveries 3 | . . . . . . . . . . . . . . . 3 . . Exploration | -11 -10 -10 -9 -9 -9 -8 -8 -7 -7 -7 -7 -6 -6 -5 -5 -5 -5 ------------- Run | Jun Mat Min Mat Min Exi Min Mat Fac Low Low Dat Pro Fac Fac Gar Fac Gar Turns Passed 12012 | 1 724 446 684 715 361 24 251 1130 352 689 111 1353 1941 1168 876 146 1040 Spaces Moved 8062 | 1 571 502 599 549 289 19 123 764 231 444 84 922 1233 747 446 109 429 Core 15 | . . . . . . . . . . . . . . . . . 15 Treads 106 | . . . . . . . . . . . . . . . . . 106 Legs 6168 | 1 106 . . 342 289 19 123 764 231 444 84 922 1233 747 446 109 308 Wheels 1773 | . 465 502 599 207 . . . . . . . . . . . . . Hover . | . . . . . . . . . . . . . . . . . . Flight . | . . . . . . . . . . . . . . . . . . Fastest Speed 80 | 120 80 80 80 80 120 120 120 120 130 130 133 133 120 120 120 120 120 Average Speed 123 | 120 87 80 80 111 120 120 154 126 130 131 133 133 128 133 156 120 193 Slowest Speed 850 | 120 120 80 80 260 120 120 190 195 130 133 133 133 190 190 190 120 850 Overloaded Moves . | . . . . . . . . . . . . . . . . . . Propulsion Burnouts . | . . . . . . . . . . . . . . . . . . Robots Hopped . | . . . . . . . . . . . . . . . . . . Cave-ins Triggered . | . . . . . . . . . . . . . . . . . . Exploration Rate (%) 49 | 2 70 95 53 96 70 20 19 22 41 67 69 96 37 24 55 3 55 Regions Visited 17 Branch Regions 8 Pre-discovered Areas 3 | . . 1 . 1 . . . . . . 1 . . . . . . Known Exits Taken 5 | . 1 . 1 . . . 1 . . . . . . 1 . 1 . Unknown Exits Taken 11 | 1 . 1 . 1 1 1 . 1 1 1 1 1 1 . . . . Scrap Searched 8 | . . 1 . 2 . . . . . 2 . 3 . . . . . Spaces Dug 15 | . . . . 15 . . . . . . . . . . . . . Terrain Destroyed 369 | . . . 12 15 . . 28 64 1 3 . 1 54 105 39 13 34 Melee . | . . . . . . . . . . . . . . . . . . Projectile 46 | . . . . . . . . . 1 . . 1 6 22 9 . 7 AOE 323 | . . . 12 15 . . 28 64 . 3 . . 48 83 30 13 27 Terrain Rammed . | . . . . . . . . . . . . . . . . . . Walls Destroyed . | . . . . . . . . . . . . . . . . . . Machines Disabled . | . . . . . . . . . . . . . . . . . . Actions | -11 -10 -10 -9 -9 -9 -8 -8 -7 -7 -7 -7 -6 -6 -5 -5 -5 -5 --------- Run | Jun Mat Min Mat Min Exi Min Mat Fac Low Low Dat Pro Fac Fac Gar Fac Gar Total 9285 | 1 712 531 743 598 303 20 152 861 253 511 83 1004 1427 853 546 119 568 Wait 338 | . 55 17 38 3 15 . . 18 5 9 . 52 43 41 21 . 21 Move 8046 | . 570 501 598 548 288 19 122 763 230 443 83 921 1232 746 444 109 429 Hop . | . . . . . . . . . . . . . . . . . . Pick Up 81 | . 13 1 13 2 . . 1 8 . 2 . 1 13 5 5 3 14 Fast Attach 66 | . 4 1 4 7 . . 3 6 2 3 . 2 11 4 5 2 12 Attach 41 | . . 1 6 2 . . 2 3 . 5 . . 5 7 4 . 6 Detach 23 | . 3 . 1 3 . . 1 2 . 3 . 1 3 3 1 . 2 Swap 99 | . 5 . 15 1 . . 4 12 3 4 . 6 15 10 13 . 11 Drop 148 | 1 15 1 26 3 . . 5 18 2 6 . 3 29 9 9 3 18 Fire 378 | . 44 8 41 28 . . 14 30 10 17 . 18 73 28 28 2 37 Melee 6 | . . . . . . . . . . . . . . . 6 . . Ram 4 | . 1 1 1 1 . . . . . . . . . . . . . Kick 6 | . 2 . . . . 1 . . . . . . 3 . . . . Crush . | . . . . . . . . . . . . . . . . . . Escape Stasis 13 | . . . . . . . . . . . . . . . 5 . 8 Rewire 36 | . . . . . . . . 1 1 19 . . . . 5 . 10 Trap . | . . . . . . . . . . . . . . . . . . Miscellaneous . | . . . . . . . . . . . . . . . . . . Route ------- -11/Junkyard -10/Materials (discovered 2 exits: *Mat / *Min) -10/Mines (discovered 2 exits: *Mat x2) -9/Materials (discovered 5 exits: *Mat x2 / *Min / *Sto x2) -9/Mines (discovered 3 exits: *Mat x2 / *Exi) -9/Exiles -8/Mines -8/Materials (discovered 2 exits: *Fac x2) -7/Factory -7/Lower Caves -7/Lower Caves -7/Data Miner -6/Proximity Caves -6/Factory -5/Factory -5/Garrison (discovered 4 exits: *Fac x4) -5/Factory -5/Garrison (discovered 1 exit: [*Fac]) History --------- Turn | Location | Event 2 | -11/Junkyard | Discovered new exit (range 0) 2 | -11/Junkyard | Entered Materials 308 | -10/Materials | Build established: Mutant 380 | -10/Materials | Discovered new exit (range 12) 398 | -10/Materials | Identified exit to Mines 726 | -10/Materials | Entered Mines 733 | -10/Mines | Received a Rocket Launcher from a helpful Derelict 742 | -10/Mines | Learned location of Mines (-9) 748 | -10/Mines | Met a Derelict who couldn't figure out how to use a Trap Extractor 821 | -10/Mines | Discovered new exit (range 9) 890 | -10/Mines | Discovered new exit (range 7) 1115 | -10/Mines | Build established: Scavenger-Mutant 1172 | -10/Mines | Entered Materials 1172 | -9/Materials | Evolved 2 slots: Propulsion x1, Weapon x1 1213 | -9/Materials | Discovered new exit (range 15) 1348 | -9/Materials | Discovered new exit (range 3) 1471 | -9/Materials | Identified exit to Mines 1471 | -9/Materials | Identified exit to Storage 1681 | -9/Materials | Build established: Scavenger-Tank 1717 | -9/Materials | Discovered new exit (range 16) 1856 | -9/Materials | Entered Mines 1902 | -9/Mines | Learned location of Storage (-9) 1925 | -9/Mines | Discovered new exit (range 7) 1976 | -9/Mines | Joined a pair of Derelicts in attacking an 0b10 outpost 2132 | -9/Mines | Lost 5 parts (1p3n1u) 2169 | -9/Mines | Discovered new exit (range 9) 2458 | -9/Mines | Learned 2 Materials zone layouts 2559 | -9/Mines | Deemed a non-threat by the Exiles lab entrance 2560 | -9/Mines | Discovered new exit (range 5) 2571 | -9/Mines | Entered Exiles 2571 | -9/Exiles | Found Exiles lab abandoned 2591 | -9/Exiles | Build established: Tank 2904 | -9/Exiles | Discovered new exit (range 14) 2932 | -9/Exiles | Entered Mines 2938 | -8/Mines | Discovered new exit (range 15) 2956 | -8/Mines | Entered Materials 2956 | -8/Materials | Evolved 2 slots: Utility x1, Weapon x1 2957 | -8/Materials | Identified exit to Factory 3118 | -8/Materials | Discovered exit to Factory (range 15) 3207 | -8/Materials | Entered Factory 3207 | -7/Factory | Evolved 2 slots: Utility x2 3327 | -7/Factory | Garrison activated, responded to threat 3606 | -7/Factory | Allied Derelicts emerged from ambush trap array 4007 | -7/Factory | First assault squad dispatched 4317 | -7/Factory | Discovered new exit (range 13) 4337 | -7/Factory | Entered Lower Caves 4337 | -7/Lower Caves | Accompanied by 1 ally 4401 | -7/Lower Caves | Encountered a Warlord checkpoint 4553 | -7/Lower Caves | Spotted B-75 Beast 4567 | -7/Lower Caves | Allies destroyed B-75 Beast 4682 | -7/Lower Caves | Discovered new exit (range 5) 4689 | -7/Lower Caves | Entered another Lower Caves area 4722 | -7/Lower Caves | Attracted the attention of an 0b10 outpost 4919 | -7/Lower Caves | Spotted B-75 Beast 4942 | -7/Lower Caves | Allies destroyed B-75 Beast 5039 | -7/Lower Caves | Build established: Gunner 5176 | -7/Lower Caves | Ambushed by wild Derelicts 5371 | -7/Lower Caves | Discovered new exit (range 6) 5378 | -7/Lower Caves | Entered Data Miner 5378 | -7/Data Miner | Accompanied by 1 ally 5378 | -7/Data Miner | Discovered new exit (range 6) 5404 | -7/Data Miner | Met Data Miner 5440 | -7/Data Miner | Learned location of Section 7 (-2) 5440 | -7/Data Miner | Acquired the access code to Warlord's prototype stash 5452 | -7/Data Miner | Received God Mode back door access code from Data Miner 5489 | -7/Data Miner | Entered Proximity Caves 5489 | -6/Proximity Caves | Accompanied by 1 ally 5525 | -6/Proximity Caves | Spotted B-75 Beast 5527 | -6/Proximity Caves | Escorted by Enhanced Grunt 5533 | -6/Proximity Caves | Destroyed B-75 Beast 5687 | -6/Proximity Caves | Attracted the attention of an 0b10 checkpoint 6049 | -6/Proximity Caves | Learned Factory security intel 6163 | -6/Proximity Caves | Build established: Derelict-Gunner 6813 | -6/Proximity Caves | Discovered new exit (range 6) 6842 | -6/Proximity Caves | Entered Factory 6842 | -6/Factory | Accompanied by 1 ally 6842 | -6/Factory | Evolved 2 slots: Utility x2 7074 | -6/Factory | Garrison activated, responded to threat 7175 | -6/Factory | Build established: Hacker-Gunner 7203 | -6/Factory | Incoming investigation squad redirected 7235 | -6/Factory | Found Hvy. Reactive Plating 7492 | -6/Factory | Incoming investigation squad redirected 7844 | -6/Factory | Incoming investigation squad redirected 8036 | -6/Factory | Incoming investigation squad redirected 8282 | -6/Factory | Fabricated H-55 Commando? 8353 | -6/Factory | Lost 3 parts (1p1n1w) 8592 | -6/Factory | First assault squad dispatched 8611 | -6/Factory | Incoming assault squad redirected 8637 | -6/Factory | Garrison activated, responded to threat 8754 | -6/Factory | Discovered new exit (range 14) 8783 | -6/Factory | Entered another Factory area 8783 | -5/Factory | Accompanied by 1 ally 8783 | -5/Factory | Evolved 2 slots: Utility x2 8942 | -5/Factory | Incoming investigation squad redirected 9194 | -5/Factory | Incoming investigation squad redirected 9221 | -5/Factory | Incoming investigation squad redirected 9258 | -5/Factory | Fabricated H-55 Commando? 9281 | -5/Factory | Incoming investigation squad redirected 9949 | -5/Factory | Identified exit to Garrison 9951 | -5/Factory | Entered Garrison 9994 | -5/Garrison | Triggered checkpoint 10087 | -5/Garrison | Learned Factory security intel 10125 | -5/Garrison | Triggered checkpoint 10150 | -5/Garrison | Triggered checkpoint 10150 | -5/Garrison | Triggered checkpoint 10196 | -5/Garrison | Destroyed 8 combat bots 10202 | -5/Garrison | Core integrity fell below 50% 10240 | -5/Garrison | Lost 5 parts (2p1n2u) 10336 | -5/Garrison | Triggered checkpoint 10349 | -5/Garrison | Found embedded Infiltrators 10368 | -5/Garrison | Installed Relay Interface Framework 10415 | -5/Garrison | Garrison Relay disabled 10444 | -5/Garrison | Triggered checkpoint 10448 | -5/Garrison | Discovered new exit (range 37) 10448 | -5/Garrison | Discovered new exit (range 25) 10448 | -5/Garrison | Discovered new exit (range 68) 10448 | -5/Garrison | Discovered new exit (range 75) 10634 | -5/Garrison | Heavy support dispatched to Factory 10634 | -5/Garrison | Garrison Relay disabled 10827 | -5/Garrison | Entered Factory 10827 | -5/Factory | Accompanied by 1 ally 10973 | -5/Factory | Identified exit to Garrison 10973 | -5/Factory | Entered Garrison 10973 | -5/Garrison | Accompanied by 1 ally 11078 | -5/Garrison | Expanded RIF knowledge: Patrol Navigation 11098 | -5/Garrison | Phase Generator disabled 11130 | -5/Garrison | Triggered checkpoint 11156 | -5/Garrison | Garrison Relay disabled 11324 | -5/Garrison | Triggered checkpoint 11350 | -5/Garrison | Triggered checkpoint 11373 | -5/Garrison | Core integrity fell below 20% 11403 | -5/Garrison | Destroyed 10 combat bots 11406 | -5/Garrison | Triggered checkpoint 11413 | -5/Garrison | Lost 6 parts (1p1n2u2w) 11540 | -5/Garrison | Spotted B-75 Beast 11569 | -5/Garrison | Allies destroyed B-75 Beast 11597 | -5/Garrison | Lost 5 parts (3n1u1w) 11605 | -5/Garrison | Spotted B-75 Beast 11625 | -5/Garrison | Destroyed B-75 Beast 11770 | -5/Garrison | Rewired B-90 Cyclops 11790 | -5/Garrison | Rewired B-90 Cyclops 11926 | -5/Garrison | Garrison Relay disabled 11972 | -5/Garrison | Triggered checkpoint 11999 | -5/Garrison | Discovered new exit (range 12) 12013 | -5/Garrison | Core destroyed Last Messages --------------- 11972_ Relay Coupler [Grunt] destroyed. 11974_ Adv. Heat Sink destroyed. 11976_ Destroyed Lgt. Angular Momentum Engine. 11976_ Slug penetrates G-50 Soldier. 11976_ G-50 Soldier destroyed. 11981_ Destroyed Lgt. Angular Momentum Engine. 11981_ Slug penetrates G-50 Soldier. 11981_ G-50 Soldier destroyed. Player 2: "You probably won't believe me but there's an exit within 25 paces of this location, I just know it." 11992_ Acquired 54 matter. 11999_ EXIT=FOUND 12006_ Penetrated by Slug. 12007_ System corrupted: Matter fused (-7). 12007_ Y-64 Sentinel springs to life. 12007_ Penetrated by Slug. 12007_ Imp. Targeting Computer destroyed. 12010_ Player 2 triggered Alarm Trap. 12010_ An alarm sounds. 12010_ RIF Installer disabled. Map ----- +----------------------------------------------------+ | ?????????????# ## % """ #?????????? | | ?????????????# ## !#?????????? | | ?????????????# ## #?????????? | | ?????????????# ## #?????????? | | ?????????????# ###### ###############?????????? | | ?????????????# #????# #???????????????????????? | | ?????????????# #????##????????????????????????? | | ?????????????# ############???????????????????? | | ?????????????# ?????????????????? | | ?????????????# ?????????????????? | | ?????????????# ?????????????????? | | ?????????????# ##############??#???????????????? | | ?????????????# #?????????????? #???????????????? | | ?????????????# ############## #???????????????? | | ?????????????# #???????????????? | | ?????????????# ! ] #???????????????? | | ?????????????###[ ##### #"###????????????????? | | ??????????????#"!"""#??# %#????????????????????? | | ??????????????#######??## ##????????????????????? | | ????????????????????????# ########??????????????? | | ????????????????????????# < #????????? | | ????????????????????????# ########??????????????? | | ?????????????????????#### ####??????????????????? | | ?????????????????????# Y@Y #??????????????????? | | ?????????????????????### "###??????????????????? | | ???????????????????????#"@"#????????????????????? | | ???????????????????????#" "#????????????????????? | | ???????????????????????#"""#????????????????????? | | ???????????????????????#####????????????????????? | | ????????????????????????????????????????????????? | | ????????????????????????????????????????????????? | | ????????????????????????????????????????????????? | | ????????????????????????????????????????????????? | | | | | | | | | | | | | | | | | | | | | | | | | | | | | | | | | | | +----------------------------------------------------+ Best States ------------- Heat Dissipation 67 Energy Generation 19 Energy Capacity 315 Matter Stores 300 Matter Capacity 300 Sight Range 16 Terrain Scan Density 10 Jamming Range 14 Armor Coverage 600 Resistance: KI 40 Weapon Shielding 66 Evasion (%) 55 Targeting Accuracy 12 Recoil Reduction 1 Salvage Targeting 1 Offensive Hacking 22 Defensive Hacking 30 Relay Coupler Types 2 Relay Coupler Value 79 Item Schematics ----------------- Structural Scanner | -9/Materials | Extracted Datajack | -9/Materials | Extracted Welding Torch | -9/Materials | Extracted Imp. Ion Engine | -9/Materials | Extracted Weight Redist. System | -9/Materials | Extracted Gatling Laser | -7/Factory | Scanalyzed Combat Drone Bay | -7/Data Miner | Free Lgt. Regenerative Plating | -7/Data Miner | Free Biomechanical Wings | -7/Data Miner | Free Thermal Defense Suite | -7/Data Miner | Free Gui. EMP Blaster | -7/Data Miner | Free Antigrav System | -7/Data Miner | Free Imp. Focal Shield | -7/Data Miner | Free Hvy. Shock Bomb Launcher | -7/Data Miner | Free Adv. Coolant Injector | -7/Data Miner | Free Tesla Rifle | -7/Data Miner | Free Adv. Thermal Shield | -7/Data Miner | Free Imp. Cooling System | -6/Factory | Scanalyzed Adv. Heat Sink | -5/Factory | Scanalyzed Lrn. Missile Launcher | -5/Factory | Scanalyzed Hvy. Reactive Plating | -5/Factory | Scanalyzed Mni. Drone Bay | -5/Factory | Scanalyzed Lgt. Angular Momentum Engine | -5/Factory | Scanalyzed Cld. Particle Cannon | -5/Factory | Scanalyzed Robot Schematics ------------------ M-22 Extractor | -7/Data Miner | Free L-41 Fighter | -7/Data Miner | Free H-55 Commando | -7/Data Miner | Free G-47 Trooper | -7/Data Miner | Free B-48 Gladiator | -7/Data Miner | Free Fabricated ------------ H-55 Commando | x2 | -6/Factory H-55 Commando | x2 | -5/Factory Alien Tech Used ----------------- None Achievements -------------- None Challenges ------------ None Player 2 | -11 -10 -10 -9 -9 -9 -8 -8 -7 -7 -7 -7 -6 -6 -5 -5 -5 -5 ---------- Run | Jun Mat Min Mat Min Exi Min Mat Fac Low Low Dat Pro Fac Fac Gar Fac Gar Slots Evolved 10 | . . 2 . . . 2 2 . . . . 2 2 . . . . Power 2 | . . . . . . 1 . . . . . 1 . . . . . Propulsion 3 | . . . . . . 1 1 . . . . . 1 . . . . Utility 4 | . . 1 . . . . 1 . . . . 1 1 . . . . Weapon 1 | . . 1 . . . . . . . . . . . . . . . Parts Attached 124 | . 10 4 14 3 . . 5 30 1 2 . 4 12 16 14 . 9 Parts Lost 15 | . . . . . . . . 5 . . . . . 1 4 . 5 Damage Taken 4715 | . 118 18 334 43 . . 210 1132 76 141 4 39 116 445 967 . 1072 Core 494 | . 53 6 63 . . . 46 114 . 9 . . 9 83 23 . 88 Player 2/Cogmind (%) 26 | . 75 30 38 . . . 51 51 . 56 . . 6 45 6 . 19 Absorbed by Shields 309 | . . . . . . . . 32 49 76 3 37 112 . . . . Damage Inflicted 11421 | . 204 . 317 193 . . 262 1599 480 1129 . 556 1795 1051 1883 . 1952 Player 2/Cogmind (%) 33 | . 23 . 22 21 . . 33 36 39 46 . 36 23 25 53 . 40 Combat Hostiles Destroyed 99 | . 8 . 4 3 . . 5 17 2 7 . 1 12 8 18 . 14 Player 2/Cogmind (%) 42 | . 61 . 26 25 . . 62 60 28 53 . 8 30 42 62 . 42 Game ------ Seed SensorArmorGenerator Manual? 0 Play Time 01:33:42 Cumulative 433.6 hours Start 2023.07.11 @ 11:57:25 End 2023.07.11 @ 14:42:47 Sessions 4 Manual Loads 0 Difficulty Rogue Special Mode AFD2020/Player2 Game No. 315 Rogue 96 Adventurer 76 Explorer 143 Win Type - Total 22 Types 19/0/2/0/0/0/0/1/0 Lore% 65 Gallery% 86 Achievement% 71 Wizard Run 0 Options --------- ASCII 0 Keyboard 1 Movement Numpad Keybinds 0 Fullscreen 2 Font 18/X11Bold Map View 76x50 Tactical HUD 1 Map Filters NONE Filters NONE Steam 1 RUN: 534f657e-f4f1-445e-90c2-d85b22d0568a